Cogmind - Beta 14 @@@ ROGUE MODE // 2024.10.24 @ 00:02:22 Player: Ae Result: Destroyed by 51-UDU(R) with Subdweller Beam Cannon Performance ------------- Evolutions (0) 0 Regions Visited (2) 400 Robots Destroyed (25) 125 Value Destroyed (512) 512 Prototype IDs (0) 0 Alien Tech Used (0) 0 Bonus (0) 0 TOTAL SCORE: 1037 Bonus ------- None Cogmind --------- Core Integrity 0/250 Matter 209/300 Energy 144/200 System Corruption 0% Temperature Cool (9) Movement Rolling (140) Ox4 Location -10/Subcaves Parts ------- > --- POWER (1) -------- Subdweller Power Source > --- PROPULSION (2) --- Light Treads Wheel > --- UTILITY (2) ------ Improved Heat Sink High-capacity Storage Unit > --- WEAPON (2) ------- Autogun > --- INVENTORY (20) --- Wheel Subdweller Monowheel Subdweller Monowheel Subdweller Monowheel Heat Sink High-capacity Matter Pod (200) Structural Scanner Signal Interpreter Seismic Detector EM Shotgun EM Shotgun EM Shotgun Subdweller Laser Subdweller Beam Cannon Autogun Subdweller Machine Gun Grenade Launcher Subdweller Shrapnel Launcher Datajack Mining Laser Peak State ------------ > --- POWER ------------ Subdweller Power Source > --- PROPULSION ------- Light Treads Wheel > --- UTILITY ---------- Improved Heat Sink High-capacity Storage Unit > --- WEAPON ----------- Autogun Autogun > --- INVENTORY -------- Light Treads Wheel Subdweller Monowheel Subdweller Monowheel Heat Sink High-capacity Matter Pod Structural Scanner Signal Interpreter Seismic Detector Hacking Suite EM Shotgun EM Shotgun EM Shotgun Subdweller Laser Autogun Subdweller Machine Gun Grenade Launcher Subdweller Shrapnel Launcher Datajack Mining Laser [Rating: 15] Favorites ----------- Power Subdweller Power Source Engine Subdweller Power Source Propulsion Wheel Treads Light Treads Wheel Wheel Utility High-capacity Storage Unit Device Seismic Detector Storage High-capacity Storage Unit Weapon Autogun Energy Gun Small Laser Ballistic Gun Autogun Special Weapon Mining Laser Build | -11 -10 -10 ------- Run | Yrd Mat Sub Slots Evolved . | . . . Power . | . . . Propulsion . | . . . Utility . | . . . Weapon . | . . . Parts Attached 29 | 7 5 17 Power 3 | 1 . 2 Engine 3 | 1 . 2 Core . | . . . Reactor . | . . . Propulsion 5 | 2 1 2 Treads 2 | 1 . 1 Leg . | . . . Wheel 3 | 1 1 1 Hover . | . . . Flight . | . . . Utility 8 | 2 2 4 Device 6 | 1 1 4 Storage 2 | 1 1 . Processor . | . . . Hackware . | . . . Protection . | . . . Artifact . | . . . Weapon 13 | 2 2 9 Energy Gun 4 | 2 . 2 Energy Cannon . | . . . Ballistic Gun 7 | . 2 5 Ballistic Cannon . | . . . Launcher . | . . . Special Weapon 2 | . . 2 Impact Weapon . | . . . Slashing Weapon . | . . . Piercing Weapon . | . . . Special Melee Weapon . | . . . Unidentified Prototypes . | . . . Parts Lost 7 | . . 7 Power 2 | . . 2 Propulsion 2 | . . 2 Utility . | . . . Weapon 3 | . . 3 Highest Loss Streak 2 | . . 2 To Critical Strikes 1 | . . 1 Average Slot Usage (%) 96 | . 99 94 Engine 12 | . 14 12 Treads 12 | . 14 11 Wheel 13 | . 14 13 Device 13 | . 13 14 Storage 14 | . 14 14 Energy Gun 2 | . 2 1 Ballistic Gun 19 | . 24 15 Special Weapon 6 | . . 10 Peak Build Rating 15 | 7 12 15 Average Rating 11 | 5 10 12 On Entrance 6 | . 7 11 Naked Turns . | . . . Heaviest Build 52 | 12 50 52 Greatest Support 10 | 10 10 10 Greatest Overweight (x) 5 | 1 4 5 Average Overweight (x) 3 | . 3 4 Largest Inventory Capacity 20 | 8 20 20 Average Capacity 18 | 7 18 20 Most Carried 20 | 6 20 20 Average Carried 15 | 4 12 19 Final Capacity 20 | 8 20 20 Final Carried 20 | 6 19 20 Class Distribution -------------------- 55% | Mutant 44% | Scavenger-Mutant Dominant Class ---------------- Mutant | -10/Materials Scavenger-Mutant | -10/Subcaves Resources | -11 -10 -10 ----------- Run | Yrd Mat Sub Matter Collected 1073 | 270 581 222 Remotely . | . . . Salvage Created 854 | 110 485 259 Parts 61 | 10 41 10 Haulers Intercepted 2 | . 2 . Recyclers Shooed 2 | 2 . . Parts Field Recycled . | . . . Retrieved Matter . | . . . Parts Self-Destructed 17 | . . 17 Prevented . | . . . Kills | -11 -10 -10 ------- Run | Yrd Mat Sub Combat Hostiles Destroyed 11 | . 5 6 Guns 11 | . 5 6 Classes Destroyed 9 | 2 6 1 Worker 4 | . 4 . Builder 1 | . 1 . Tunneler 3 | 3 . . Hauler 2 | . 2 . Recycler 1 | 1 . . Operator 1 | . 1 . Watcher 2 | . 2 . Grunt 7 | . 5 2 Subdweller 4 | . . 4 Best Kill Streak 2 | 2 2 2 Combat Bots Only 2 | . 2 2 Max Kills in Single Turn 1 | 1 1 1 Gunslinging . | . . . Exploded . | . . . Melee . | . . . Uniques/NPCs Destroyed . | . . . Combat | -11 -10 -10 -------- Run | Yrd Mat Sub Hostile Shots Fired 61 | . 18 43 Missed 12 | . 5 7 Damage Taken 1050 | . 190 860 Core 251 | . 20 231 Absorbed by Shields . | . . . Core Remaining (%) 100 | 100 . . Volleys Fired 113 | 9 42 62 Largest 2 | 2 2 2 Hottest 100 | 90 46 100 Shots Fired 184 | 18 84 82 Gun 157 | 18 84 55 Cannon . | . . . Launcher . | . . . Special 27 | . . 27 Kinetic 127 | . 84 43 Thermal 45 | 18 . 27 Explosive . | . . . Electromagnetic 12 | . . 12 Robot Hit Streak 14 | 4 7 14 Robot Miss Streak 4 | 3 4 1 Penetration Max . | . . . Secondary Targets . | . . . Shots Hit Robots 104 | 10 46 48 Core Hits 36 | 5 19 12 Critical Kills . | . . . Critical Parts Destroyed . | . . . Critical Strikes 1 | 1 . . Burn 1 | 1 . . Melee Attacks . | . . . Impact . | . . . Slashing . | . . . Piercing . | . . . Sneak Attacks . | . . . Combat Hostiles . | . . . Follow-up Attacks . | . . . Damage Inflicted 1537 | 142 720 675 Guns 1537 | 142 720 675 Cannons . | . . . Explosions . | . . . Melee . | . . . Ramming . | . . . Kinetic 1214 | . 720 494 Thermal 142 | 142 . . Explosive . | . . . Electromagnetic 181 | . . 181 Impact . | . . . Slashing . | . . . Piercing . | . . . Highest Corruption . | . . . Average Corruption . | . . . Corruption Purged . | . . . Corruption Blocked . | . . . Overload Shots . | . . . Overflow Damage . | . . . Projectiles . | . . . Explosions . | . . . Melee . | . . . Knockbacks . | . . . Impact . | . . . Kinetic . | . . . Secondary . | . . . Self-Inflicted Damage . | . . . Shots . | . . . Rammed . | . . . Targets Rammed . | . . . Kicked . | . . . Crushed . | . . . Highest Temperature 120 | 120 18 . Average Temperature 26 | 51 6 . Received Heat Transfer 249 | . 87 162 Siege Activations . | . . . Robots Corrupted . | . . . Combat Hostiles . | . . . Parts Fried 1 | . . 1 Impact Corruptions . | . . . Robots Melted . | . . . Combat Hostiles . | . . . Parts Melted 2 | 2 . . Heat Transferred 446 | 446 . . Parts Sabotaged . | . . . Parts Stolen . | . . . Parts Stripped . | . . . Power Chain Reactions . | . . . Alert | -11 -10 -10 ------- Run | Yrd Mat Sub Peak Influence 135 | 20 135 . Initial 13 | . 13 . Average 63 | 8 72 . Maximum Alert Level . | . . . Low Security (%) 100 | 100 100 . Level 1 . | . . . Level 2 . | . . . Level 3 . | . . . Level 4 . | . . . Level 5 . | . . . High Security . | . . . Max Security . | . . . Squads Dispatched 2 | . 2 . Investigation 1 | . 1 . Extermination . | . . . Reinforcement 1 | . 1 . Assault . | . . . Garrison . | . . . Intercept . | . . . Searches Triggered . | . . . Construction Impeded . | . . . Haulers Reinforced . | . . . Active Scanning Responses . | . . . Cargo Convoy Interrupts . | . . . Stealth | -11 -10 -10 --------- Run | Yrd Mat Sub Distress Signals 1 | . 1 . Communications Jammed . | . . . Distress Signals . | . . . Times Spotted 20 | . 11 9 Peak Tracking Total 3 | . 3 3 Tactical Retreats 1 | . 1 . Traps | -11 -10 -10 ------- Run | Yrd Mat Sub Traps Triggered 3 | . 1 2 Indirectly . | . . . Trap Hack Attempts . | . . . Triggered . | . . . Disarmed . | . . . Reprogrammed . | . . . Reused . | . . . Traps Extracted . | . . . Installed . | . . . Triggered . | . . . Machines | -11 -10 -10 ---------- Run | Yrd Mat Sub Machines Disabled . | . . . Max in Single Turn . | . . . Machines Repaired . | . . . Machines Dismantled . | . . . Machines Sabotaged . | . . . Overloaded Fab Kills . | . . . Hacking | -11 -10 -10 --------- Run | Yrd Mat Sub Machines Accessed 4 | . 1 3 Terminals . | . . . Fabricators . | . . . Repair Stations 1 | . 1 . Recycling Units . | . . . Scanalyzers . | . . . Garrison Access . | . . . Total Hacks 11 | . 4 7 Successful 7 | . . 7 Failed 4 | . 4 . Catastrophic 1 | . 1 . Database Lockouts . | . . . Manual . | . . . Terminals . | . . . Fabricators . | . . . Repair Stations 4 | . 4 . Recycling Units . | . . . Scanalyzers . | . . . Garrison Access . | . . . Terminal Hacks 7 | . . 7 Record 6 | . . 6 Open Door 1 | . . 1 Fabricator Hacks . | . . . Repair Station Hacks . | . . . Recycling Unit Hacks . | . . . Scanalyzer . | . . . Garrison Access Hacks . | . . . Unauthorized Hacks . | . . . Terminals . | . . . Fabricators . | . . . Repair Stations . | . . . Recycling Units . | . . . Scanalyzers . | . . . Garrison Access . | . . . Data Cores Recovered . | . . . Used . | . . . Hacking Detections 1 | . 1 . Full Trace Events 1 | . 1 . Feedback Events . | . . . Feedback Blocked . | . . . Robot Schematics Acquired . | . . . Robots Built . | . . . Authchips . | . . . Time . | . . . Total Robot Build Rating . | . . . Part Schematics Acquired . | . . . Parts Built . | . . . Authchips . | . . . Time . | . . . Total Part Build Rating . | . . . Parts Repaired . | . . . Time . | . . . Parts Recycled . | . . . Recycled Matter . | . . . Retrieved Matter . | . . . Retrieved Components . | . . . Parts Scanalyzed . | . . . Part Schematics Acquired . | . . . Parts Damaged . | . . . Bothacking | -11 -10 -10 ------------ Run | Yrd Mat Sub Used RIF Installer . | . . . Robots Hacked . | . . . Non-combat . | . . . Combat . | . . . Robot Hacks Applied . | . . . Relay Couplers Released . | . . . Fabnet Peak Effective % . | . . . Robots Rewired . | . . . Allies Hacked . | . . . Hacks Repelled . | . . . Allies | -11 -10 -10 -------- Run | Yrd Mat Sub Total Allies . | . . . Largest Group . | . . . Highest-Rated Group . | . . . Highest-Rated Ally . | . . . Total Orders . | . . . Ally Attacks . | . . . Total Damage . | . . . Kills . | . . . Allies Corrupted . | . . . Allies Melted . | . . . Intel | -11 -10 -10 ------- Run | Yrd Mat Sub Robot Analysis Total . | . . . Derelict Logs Recovered . | . . . Drone Launches . | . . . Drone Recoveries . | . . . Exploration | -11 -10 -10 ------------- Run | Yrd Mat Sub Turns Passed 2320 | 135 879 1306 Spaces Moved 1392 | 100 552 740 Core 1 | 1 . . Treads . | . . . Legs . | . . . Wheels 1391 | 99 552 740 Hover . | . . . Flight . | . . . Fastest Speed 50 | 50 80 140 Average Speed 132 | 92 130 140 Slowest Speed 155 | 95 140 155 Overloaded Moves . | . . . Propulsion Burnouts . | . . . Robots Hopped . | . . . Cave-ins Triggered . | . . . Exploration Rate (%) 38 | 5 59 51 Regions Visited 2 Branch Regions 1 Pre-discovered Areas 1 | . . 1 Known Exits Taken . | . . . Unknown Exits Taken 2 | 1 1 . Scrap Searched . | . . . Spaces Dug . | . . . Terrain Destroyed . | . . . Melee . | . . . Projectile . | . . . AOE . | . . . Terrain Rammed . | . . . Walls Destroyed . | . . . Machines Disabled . | . . . Actions | -11 -10 -10 --------- Run | Yrd Mat Sub Total 1641 | 121 649 871 Wait 66 | . 25 41 Move 1390 | 99 551 740 Hop . | . . . Pick Up 30 | 6 16 8 Fast Attach 9 | 7 2 . Attach 7 | . 1 6 Detach 3 | . 3 . Swap 13 | . 2 11 Drop 8 | . 7 1 Fire 113 | 9 42 62 Melee . | . . . Ram . | . . . Kick . | . . . Crush . | . . . Escape Stasis . | . . . Rewire 2 | . . 2 Trap . | . . . Miscellaneous . | . . . Route ------- -11/Scrapyard -10/Materials (discovered 4 exits: [*Mat x2] / [*Min] / *Sub) -10/Subcaves History --------- Turn | Location | Event 27 | -11/Scrapyard | Discovered new exit (range 15) 136 | -11/Scrapyard | Entered Materials 170 | -10/Materials | Discovered new exit (range 14) 170 | -10/Materials | Discovered new exit (range 13) 250 | -10/Materials | Discovered new exit (range 16) 315 | -10/Materials | Build established: Mutant 1004 | -10/Materials | Discovered new exit (range 9) 1015 | -10/Materials | Entered Subcaves 1247 | -10/Subcaves | Shifting Twisted Machinery released Sub. Shrapnel Launcher 1468 | -10/Subcaves | Shifting Twisted Machinery released Piercing Trap 1571 | -10/Subcaves | Build established: Scavenger-Mutant 2022 | -10/Subcaves | Visited Clippyterm 2027 | -10/Subcaves | Learned location of Extension (-5) 2027 | -10/Subcaves | Learned Factory fabricator intel 2134 | -10/Subcaves | Shifting Twisted Machinery released Sub. Beam Cannon 2142 | -10/Subcaves | Shifting Twisted Machinery released Sub. Monowheel 2310 | -10/Subcaves | A Subdweller sparked back to life 2310 | -10/Subcaves | A Subdweller sparked back to life 2310 | -10/Subcaves | A Subdweller sparked back to life 2312 | -10/Subcaves | Core integrity fell below 50% 2318 | -10/Subcaves | Core integrity fell below 20% 2321 | -10/Subcaves | Destroyed by 51-UDU(R) with Subdweller Beam Cannon Last Messages --------------- 02153_ Acquired 79 matter. 02155_ Imp. Heat Sink fries itself beyond repair. 02158_ Sml. Laser fries itself beyond repair. 02159_ Subatomizers dissect the Aluminum Leg. 02162_ Heat Sink fries itself beyond repair. 02166_ Aluminum Leg fries itself beyond repair. 02168_ Acquired Sub. Monowheel. 02173_ Dropped Hacking Suite. 02173_ Acquired Sub. Beam Cannon. 02196_ P7-W0G(u) tweaks Twisted Machinery. 02305_ Attempting to rewire 51-UDU(R). 02305_ 51-UDU(R) is broken beyond repair. 02306_ Attempting to rewire 51-UDU(R). 02306_ 51-UDU(R) is broken beyond repair. 02310_ JV-112(R) creaks and sparks as it begins to move. 02310_ HW-OTB(R) creaks and sparks as it begins to move. 02310_ 51-UDU(R) creaks and sparks as it begins to move. 02319_ Critical hit (Destroy). 02319_ Autogun destroyed. 02320_ JV-112(R) affixes Scrap Shield Fragment to Scrap Shield. Map ----- +----------------------------------------------------+ | | | | | | | | | | | | | | | | | | | ?????????????????????????????????????????? | | ?????????????????????????????????????????? | | ?????????????????????????????????????????? | | ?????????????????????????????????????????? | | ?????????????????????????????????????????? | | ?????????????????????????????????????????? | | ?????????????????????????????????????????? | | ?????????????????????????????????????????? | | ?????????????????????????????????????????? | | ?????????????????????????????????????????? | | ?????????????????????????????????????????? | | ?????????????????????????????????????????? | | ?????????????????????????????????????????? | | ????????????????????#<##<##??????????????? | | ????????????????????# < #??????????????? | | ????????????????##??# R #??????????????? | | ???????????????## #?# R@#??????????????? | | ??????????????## ## < R #??????????????? | | ???????????#### ## < #??????????????? | | ???????????# # ####??????????????? | | ????????????????# ##?????????????????? | | ????????????????## ##??????????????????? | | ?????????????????## ##???????????????????? | | ?????????????????## #????????????????????? | | ?????????????????# #????????????????????? | | ?????????????????## #????????????????????? | | ??????????# ###### ######???????????????? | | ????????" "" # ## #???????????????? | | ???????????# "##" ##???????????????? | | ???????????######?##""" #????????????????? | | ???????????????????##"" ##???????????????? | | ????????????????????##" "#???????????????? | | ????????????????????#"" ##???????????????? | | ????????????????????##"" #???????????????? | | ????????????????????# #" #???????????????? | | ???????????????????#### "#???????????????? | | ??????????????????##" ""#???????????????? | | ?????????????????## """ #???????????????? | | ?????????????????# "##" #???????????????? | | ?????????????????# "### #??????????????? | | ?????????????????# ### #??????????????? | +----------------------------------------------------+ Best States ------------- Heat Dissipation 39 Energy Generation 10 Energy Capacity 200 Matter Stores 300 Matter Capacity 300 Sight Range 16 Terrain Scan Density 10 Evasion (%) 44 Recoil Reduction 1 Item Schematics ----------------- None Robot Schematics ------------------ None Fabricated ------------ Nothing Alien Tech Used ----------------- None Achievements -------------- None Challenges ------------ None Game ------ Seed QuantumHardenedChainsaw Manual? 0 Play Time 00:19:47 Cumulative 84.9 hours Start 2024.10.23 @ 22:49:26 End 2024.10.24 @ 00:02:22 Sessions 1 Manual Loads 0 Difficulty Rogue Special Mode None Game No. 142 Rogue 114 Adventurer 28 Explorer 0 Win Type - Total 0 Types 0/0/0/0/0/0/0/0/0 Lore% 27 Gallery% 30 Achievement% 32 Wizard Run 0 Options --------- Layout 0 ASCII 0 Keyboard 1 Movement Numpad Keybinds 0 Fullscreen 2 Font 36/Smallcaps Map View 76x50 Zoom Use 0% Tactical HUD 1 Map Filters NONE Filters NONE Steam 1 RUN: 74f41de7-3b86-47e5-a03a-fcfdef8f0504